[Event "Titled Tuesday Blitz July 11 Early 2023"]
[White "Pakleza, Zbigniew"]
[Black "Jovic, Stanoje"]
[WhiteFideId "1119290"]
[BlackFideId "905020"]
[WhiteElo "2828"]
[BlackElo "2479"]
[Result "1-0"]
[Round "1"]
[TimeControl "180+2"]
[Date "2023.07.11"]
[WhiteClock "0:02:12"]
[BlackClock "0:00:00"]
[Board "44"]

1. d4 {[%clk 0:03:00]}  Nf6 {[%clk 0:02:58]} 2. Nf3 {[%clk 0:02:58]}  e6 {[%clk 0:02:58]} 3. Bf4 {[%clk 0:02:57]}  d5 {[%clk 0:02:56]} 4. e3 {[%clk 0:02:58]}  Bd6 {[%clk 0:02:56]} 5. Bg3 {[%clk 0:02:58]}  O-O {[%clk 0:02:56]} 6. Nbd2 {[%clk 0:02:58]}  b6 {[%clk 0:02:56]} 7. c3 {[%clk 0:02:58]}  c5 {[%clk 0:02:56]} 8. Ne5 {[%clk 0:02:58]}  Bxe5 {[%clk 0:02:55]} 9. dxe5 {[%clk 0:02:51]}  Ne4 {[%clk 0:02:51]} 10. Nxe4 {[%clk 0:02:50]}  dxe4 {[%clk 0:02:51]} 11. Qg4 {[%clk 0:02:49]}  Bb7 {[%clk 0:02:27]} 12. Bh4 {[%clk 0:02:41]}  f5 {[%clk 0:01:21]} 13. exf6 {[%clk 0:02:36]}  Rxf6 {[%clk 0:01:19]} 14. Rd1 {[%clk 0:02:23]}  Qe7 {[%clk 0:01:16]} 15. Bc4 {[%clk 0:02:14]}  Bd5 {[%clk 0:00:00]} 16. Rxd5 {[%clk 0:02:12]} 1-0


[Site "https://www.chess.com"]

[Event "Titled Tuesday Blitz July 11 Early 2023"]
[White "Fernandez Lopez, Ruben"]
[Black "Kantor, Gergely"]
[WhiteFideId "24518298"]
[BlackFideId "751499"]
[WhiteElo "2476"]
[BlackElo "2821"]
[Result "0-1"]
[Round "1"]
[TimeControl "180+2"]
[Date "2023.07.11"]
[WhiteClock "0:01:40"]
[BlackClock "0:01:12"]
[Board "45"]

1. e4 {[%clk 0:02:57]}  e6 {[%clk 0:02:59]} 2. d4 {[%clk 0:02:55]}  d5 {[%clk 0:02:59]} 3. e5 {[%clk 0:02:56]}  b6 {[%clk 0:02:59]} 4. Nf3 {[%clk 0:02:56]}  Qd7 {[%clk 0:02:59]} 5. Bd3 {[%clk 0:02:55]}  Ba6 {[%clk 0:02:57]} 6. O-O {[%clk 0:02:56]}  Bxd3 {[%clk 0:02:57]} 7. Qxd3 {[%clk 0:02:57]}  Ne7 {[%clk 0:02:57]} 8. c3 {[%clk 0:02:51]}  c5 {[%clk 0:02:57]} 9. Nbd2 {[%clk 0:02:49]}  Nbc6 {[%clk 0:02:56]} 10. Re1 {[%clk 0:02:49]}  Ng6 {[%clk 0:02:56]} 11. Nf1 {[%clk 0:02:49]}  Be7 {[%clk 0:02:56]} 12. Ng3 {[%clk 0:02:49]}  Rc8 {[%clk 0:02:54]} 13. a3 {[%clk 0:02:47]}  Na5 {[%clk 0:02:54]} 14. Nh5 {[%clk 0:02:47]}  O-O {[%clk 0:02:50]} 15. Qe3 {[%clk 0:02:43]}  Nc4 {[%clk 0:02:45]} 16. Qe2 {[%clk 0:02:42]}  b5 {[%clk 0:02:37]} 17. dxc5 {[%clk 0:02:37]}  Bxc5 {[%clk 0:02:35]} 18. Ng5 {[%clk 0:02:35]}  Ncxe5 {[%clk 0:02:29]} 19. Nf4 {[%clk 0:02:15]}  Nxf4 {[%clk 0:02:23]} 20. Bxf4 {[%clk 0:02:15]}  Ng6 {[%clk 0:02:23]} 21. Bd2 {[%clk 0:02:15]}  h6 {[%clk 0:02:21]} 22. Nf3 {[%clk 0:02:15]}  a6 {[%clk 0:02:20]} 23. Be3 {[%clk 0:02:13]}  Bxe3 {[%clk 0:02:19]} 24. Qxe3 {[%clk 0:02:13]}  Rc4 {[%clk 0:02:20]} 25. Nd2 {[%clk 0:02:13]}  Rc7 {[%clk 0:02:16]} 26. Nb3 {[%clk 0:02:12]}  Rfc8 {[%clk 0:02:16]} 27. a4 {[%clk 0:02:12]}  bxa4 {[%clk 0:02:16]} 28. Nd4 {[%clk 0:02:12]}  Rc4 {[%clk 0:02:15]} 29. Ra2 {[%clk 0:02:11]}  Rb8 {[%clk 0:02:10]} 30. Rea1 {[%clk 0:02:11]}  Kh7 {[%clk 0:02:06]} 31. h3 {[%clk 0:02:09]}  Qd6 {[%clk 0:01:50]} 32. Qd2 {[%clk 0:02:04]}  Qf4 {[%clk 0:01:40]} 33. Qe2 {[%clk 0:01:52]}  Qg5 {[%clk 0:01:33]} 34. Qc2 {[%clk 0:01:45]}  Qf6 {[%clk 0:01:15]} 35. Rxa4 {[%clk 0:01:43]}  Qxd4 {[%clk 0:01:12]} 36. Qxg6+ {[%clk 0:01:39]}  Kxg6 {[%clk 0:01:12]} 37. cxd4 {[%clk 0:01:39]}  Rxa4 {[%clk 0:01:12]} 38. Rxa4 {[%clk 0:01:39]}  Rxb2 {[%clk 0:01:13]} 39. Rxa6 {[%clk 0:01:40]}  Rb4 {[%clk 0:01:13]} 40. Kf1 {[%clk 0:01:39]}  Rxd4 {[%clk 0:01:14]} 41. Ke2 {[%clk 0:01:40]}  Rb4 {[%clk 0:01:14]} 42. Ke3 {[%clk 0:01:40]}  Rb3+ {[%clk 0:01:13]} 43. Kf4 {[%clk 0:01:40]}  Kf6 {[%clk 0:01:12]} 44. g4 {[%clk 0:01:40]}  g5# {[%clk 0:01:12]} 0-1


[Site "https://www.chess.com"]

[Event "Titled Tuesday Blitz July 11 Early 2023"]
[White "Krzyzanowski, Marcin"]
[Black "Bettalli, Francesco"]
[WhiteFideId "1132199"]
[BlackFideId "2816453"]
[WhiteElo "2819"]
[BlackElo "2475"]
[Result "0-1"]
[Round "1"]
[TimeControl "180+2"]
[Date "2023.07.11"]
[WhiteClock "0:00:00"]
[BlackClock "0:00:40"]
[Board "46"]

1. e4 {[%clk 0:02:55]}  e5 {[%clk 0:02:57]} 2. Nf3 {[%clk 0:02:53]}  Nf6 {[%clk 0:02:58]} 3. Nc3 {[%clk 0:02:50]}  Bc5 {[%clk 0:02:55]} 4. Bc4 {[%clk 0:02:45]}  d6 {[%clk 0:02:55]} 5. d3 {[%clk 0:02:43]}  O-O {[%clk 0:02:55]} 6. Be3 {[%clk 0:02:42]}  Bb6 {[%clk 0:02:55]} 7. Qd2 {[%clk 0:02:37]}  c6 {[%clk 0:02:55]} 8. Bg5 {[%clk 0:02:32]}  Nbd7 {[%clk 0:02:54]} 9. O-O-O {[%clk 0:02:31]}  Re8 {[%clk 0:02:55]} 10. g4 {[%clk 0:02:29]}  Nf8 {[%clk 0:02:54]} 11. Rdg1 {[%clk 0:02:28]}  h6 {[%clk 0:02:54]} 12. Bh4 {[%clk 0:02:27]}  Ng6 {[%clk 0:02:50]} 13. g5 {[%clk 0:02:21]}  Nxh4 {[%clk 0:02:50]} 14. Nxh4 {[%clk 0:02:22]}  Nh5 {[%clk 0:02:42]} 15. g6 {[%clk 0:02:18]}  d5 {[%clk 0:02:37]} 16. gxf7+ {[%clk 0:02:18]}  Kxf7 {[%clk 0:02:37]} 17. exd5 {[%clk 0:02:19]}  Qxh4 {[%clk 0:02:36]} 18. dxc6+ {[%clk 0:02:17]}  Be6 {[%clk 0:02:36]} 19. cxb7 {[%clk 0:02:17]}  Rad8 {[%clk 0:02:35]} 20. Bxe6+ {[%clk 0:02:05]}  Rxe6 {[%clk 0:02:36]} 21. Kb1 {[%clk 0:02:05]}  Nf6 {[%clk 0:02:28]} 22. Rg3 {[%clk 0:01:59]}  Qf4 {[%clk 0:02:27]} 23. Qd1 {[%clk 0:01:56]}  e4 {[%clk 0:02:22]} 24. Rhg1 {[%clk 0:01:53]}  g5 {[%clk 0:02:21]} 25. Nxe4 {[%clk 0:01:43]}  Rxe4 {[%clk 0:02:16]} 26. Rf3 {[%clk 0:01:43]}  Qe5 {[%clk 0:02:12]} 27. Rxf6+ {[%clk 0:01:39]}  Kxf6 {[%clk 0:02:05]} 28. Qf3+ {[%clk 0:01:22]}  Rf4 {[%clk 0:02:05]} 29. Qh5 {[%clk 0:01:22]}  Kg7 {[%clk 0:01:58]} 30. h4 {[%clk 0:01:22]}  Bxf2 {[%clk 0:01:46]} 31. hxg5 {[%clk 0:00:49]}  Bxg1 {[%clk 0:01:46]} 32. Qxh6+ {[%clk 0:00:49]}  Kf7 {[%clk 0:01:46]} 33. g6+ {[%clk 0:00:43]}  Ke7 {[%clk 0:01:44]} 34. a3 {[%clk 0:00:28]}  Bd4 {[%clk 0:01:40]} 35. Qh7+ {[%clk 0:00:15]}  Qg7 {[%clk 0:01:40]} 36. Qh2 {[%clk 0:00:07]}  Rf1+ {[%clk 0:01:38]} 37. Ka2 {[%clk 0:00:07]}  Qe5 {[%clk 0:01:34]} 38. Qh4+ {[%clk 0:00:06]}  Kd7 {[%clk 0:01:30]} 39. Qh3+ {[%clk 0:00:05]}  Kc7 {[%clk 0:01:29]} 40. Qxf1 {[%clk 0:00:05]}  Kxb7 {[%clk 0:01:20]} 41. c3 {[%clk 0:00:04]}  Bxc3 {[%clk 0:01:14]} 42. bxc3 {[%clk 0:00:02]}  Qxc3 {[%clk 0:01:15]} 43. Qf7+ {[%clk 0:00:02]}  Qc7 {[%clk 0:01:15]} 44. Qf3+ {[%clk 0:00:02]}  Qc6 {[%clk 0:01:16]} 45. Qf7+ {[%clk 0:00:02]}  Ka6 {[%clk 0:01:15]} 46. g7 {[%clk 0:00:01]}  Qc2+ {[%clk 0:01:03]} 47. Ka1 {[%clk 0:00:02]}  Qc3+ {[%clk 0:01:03]} 48. Ka2 {[%clk 0:00:02]}  Qd2+ {[%clk 0:00:46]} 49. Ka1 {[%clk 0:00:02]}  Qe1+ {[%clk 0:00:46]} 50. Ka2 {[%clk 0:00:02]}  Qe8 {[%clk 0:00:44]} 51. Qf6+ {[%clk 0:00:01]}  Kb7 {[%clk 0:00:44]} 52. Qf3+ {[%clk 0:00:01]}  Kc7 {[%clk 0:00:41]} 53. Qf4+ {[%clk 0:00:00]}  Kd7 {[%clk 0:00:40]} 0-1


[Site "https://www.chess.com"]

[Event "Titled Tuesday Blitz July 11 Early 2023"]
[White "Kopczynski, Michal"]
[Black "Kosteniuk, Alexandra"]
[WhiteFideId "1124200"]
[BlackFideId "4128125"]
[WhiteElo "2474"]
[BlackElo "2797"]
[Result "0-1"]
[Round "1"]
[TimeControl "180+2"]
[Date "2023.07.11"]
[WhiteClock "0:00:01"]
[BlackClock "0:00:08"]
[Board "47"]

1. e4 {[%clk 0:03:00]}  c6 {[%clk 0:02:57]} 2. d4 {[%clk 0:03:01]}  d5 {[%clk 0:02:55]} 3. e5 {[%clk 0:03:01]}  c5 {[%clk 0:02:55]} 4. dxc5 {[%clk 0:03:01]}  e6 {[%clk 0:02:55]} 5. f4 {[%clk 0:03:00]}  Bxc5 {[%clk 0:02:51]} 6. Nf3 {[%clk 0:02:59]}  Ne7 {[%clk 0:02:47]} 7. Bd3 {[%clk 0:02:55]}  Ng6 {[%clk 0:02:35]} 8. Nc3 {[%clk 0:02:53]}  Bd7 {[%clk 0:02:25]} 9. Qe2 {[%clk 0:02:52]}  Nc6 {[%clk 0:02:20]} 10. Bd2 {[%clk 0:02:51]}  Nh4 {[%clk 0:02:15]} 11. O-O-O {[%clk 0:02:39]}  Nxf3 {[%clk 0:02:15]} 12. Qxf3 {[%clk 0:02:39]}  Nd4 {[%clk 0:02:08]} 13. Qg4 {[%clk 0:02:34]}  g6 {[%clk 0:02:08]} 14. h4 {[%clk 0:02:27]}  h5 {[%clk 0:02:02]} 15. Qg3 {[%clk 0:02:26]}  Qb6 {[%clk 0:02:00]} 16. f5 {[%clk 0:02:06]}  gxf5 {[%clk 0:01:49]} 17. Bg5 {[%clk 0:02:06]}  Rg8 {[%clk 0:01:45]} 18. Qe1 {[%clk 0:02:01]}  Rc8 {[%clk 0:01:00]} 19. Be2 {[%clk 0:01:05]}  Nb5 {[%clk 0:00:55]} 20. Nxb5 {[%clk 0:00:47]}  Bxb5 {[%clk 0:00:53]} 21. Bxh5 {[%clk 0:00:40]}  Ba4 {[%clk 0:00:49]} 22. b3 {[%clk 0:00:39]}  Ba3+ {[%clk 0:00:44]} 23. Kb1 {[%clk 0:00:37]}  Qc5 {[%clk 0:00:33]} 24. Rc1 {[%clk 0:00:23]}  Bb5 {[%clk 0:00:25]} 25. Be3 {[%clk 0:00:21]}  Qc7 {[%clk 0:00:22]} 26. Qd2 {[%clk 0:00:16]}  Bxc1 {[%clk 0:00:18]} 27. Rxc1 {[%clk 0:00:16]}  d4 {[%clk 0:00:14]} 28. Qxd4 {[%clk 0:00:15]}  Bc6 {[%clk 0:00:10]} 29. Bg5 {[%clk 0:00:15]}  Bxg2 {[%clk 0:00:06]} 30. Qb4 {[%clk 0:00:15]}  Be4 {[%clk 0:00:05]} 31. Be2 {[%clk 0:00:13]}  a6 {[%clk 0:00:04]} 32. Kb2 {[%clk 0:00:12]}  Qxe5+ {[%clk 0:00:04]} 33. Ka3 {[%clk 0:00:12]}  Qc5 {[%clk 0:00:03]} 34. Qxc5 {[%clk 0:00:12]}  Rxc5 {[%clk 0:00:04]} 35. c4 {[%clk 0:00:12]}  Rc8 {[%clk 0:00:04]} 36. Kb2 {[%clk 0:00:11]}  Kf8 {[%clk 0:00:04]} 37. Rg1 {[%clk 0:00:11]}  Rg6 {[%clk 0:00:03]} 38. h5 {[%clk 0:00:11]}  Rg8 {[%clk 0:00:04]} 39. h6 {[%clk 0:00:12]}  Rh8 {[%clk 0:00:03]} 40. Rg3 {[%clk 0:00:11]}  Ke8 {[%clk 0:00:03]} 41. Rh3 {[%clk 0:00:11]}  Kd7 {[%clk 0:00:04]} 42. h7 {[%clk 0:00:11]}  f4 {[%clk 0:00:03]} 43. Bf6 {[%clk 0:00:11]}  Bf5 {[%clk 0:00:03]} 44. Bxh8 {[%clk 0:00:09]}  Rxh8 {[%clk 0:00:04]} 45. Rh4 {[%clk 0:00:09]}  Rxh7 {[%clk 0:00:05]} 46. Rxf4 {[%clk 0:00:09]}  Rh2 {[%clk 0:00:05]} 47. Kc3 {[%clk 0:00:07]}  Rxe2 {[%clk 0:00:04]} 48. Rd4+ {[%clk 0:00:08]}  Ke7 {[%clk 0:00:04]} 49. a4 {[%clk 0:00:09]}  Re3+ {[%clk 0:00:04]} 50. Kb4 {[%clk 0:00:09]}  Re4 {[%clk 0:00:05]} 51. Rd2 {[%clk 0:00:09]}  b6 {[%clk 0:00:05]} 52. Rh2 {[%clk 0:00:09]}  Re5 {[%clk 0:00:04]} 53. Rh8 {[%clk 0:00:08]}  a5+ {[%clk 0:00:05]} 54. Kc3 {[%clk 0:00:08]}  Rc5 {[%clk 0:00:05]} 55. Rb8 {[%clk 0:00:08]}  Rc6 {[%clk 0:00:06]} 56. Rb7+ {[%clk 0:00:08]}  Kf6 {[%clk 0:00:06]} 57. Kd4 {[%clk 0:00:09]}  e5+ {[%clk 0:00:06]} 58. Kd5 {[%clk 0:00:10]}  Re6 {[%clk 0:00:07]} 59. c5 {[%clk 0:00:09]}  bxc5 {[%clk 0:00:07]} 60. Kxc5 {[%clk 0:00:01]}  e4 {[%clk 0:00:08]} 0-1


[Site "https://www.chess.com"]

[Event "Titled Tuesday Blitz July 11 Early 2023"]
[White "Szczurek, Krzysztof"]
[Black "Zemlyanskii, Ivan"]
[WhiteFideId "1185489"]
[BlackFideId "24249971"]
[WhiteElo "2472"]
[BlackElo "2795"]
[Result "0-1"]
[Round "1"]
[TimeControl "180+2"]
[Date "2023.07.11"]
[WhiteClock "0:00:05"]
[BlackClock "0:00:26"]
[Board "49"]

1. Nf3 {[%clk 0:02:58]}  d5 {[%clk 0:02:59]} 2. g3 {[%clk 0:02:57]}  Nf6 {[%clk 0:03:00]} 3. Bg2 {[%clk 0:02:58]}  c5 {[%clk 0:03:01]} 4. O-O {[%clk 0:02:59]}  e6 {[%clk 0:03:01]} 5. c4 {[%clk 0:02:55]}  d4 {[%clk 0:03:02]} 6. d3 {[%clk 0:02:54]}  Nc6 {[%clk 0:03:02]} 7. e4 {[%clk 0:02:53]}  e5 {[%clk 0:03:03]} 8. Nh4 {[%clk 0:02:48]}  g6 {[%clk 0:02:44]} 9. f4 {[%clk 0:02:45]}  exf4 {[%clk 0:02:43]} 10. Bxf4 {[%clk 0:02:35]}  Ng4 {[%clk 0:02:28]} 11. Nf3 {[%clk 0:02:15]}  Bg7 {[%clk 0:02:28]} 12. Qe2 {[%clk 0:02:09]}  O-O {[%clk 0:02:28]} 13. Nbd2 {[%clk 0:02:09]}  h6 {[%clk 0:02:16]} 14. h4 {[%clk 0:02:02]}  Ne3 {[%clk 0:02:03]} 15. Bxe3 {[%clk 0:01:55]}  dxe3 {[%clk 0:02:04]} 16. Nb3 {[%clk 0:01:56]}  Nd4 {[%clk 0:02:05]} 17. Qxe3 {[%clk 0:01:20]}  Nc2 {[%clk 0:02:05]} 18. Qd2 {[%clk 0:01:04]}  Nxa1 {[%clk 0:02:05]} 19. Rxa1 {[%clk 0:01:05]}  Bg4 {[%clk 0:02:00]} 20. Rf1 {[%clk 0:00:57]}  Qd6 {[%clk 0:01:58]} 21. Kh2 {[%clk 0:00:54]}  Rad8 {[%clk 0:01:54]} 22. Ne1 {[%clk 0:00:54]}  Be5 {[%clk 0:01:48]} 23. Qe3 {[%clk 0:00:46]}  b6 {[%clk 0:01:47]} 24. Nd2 {[%clk 0:00:34]}  h5 {[%clk 0:01:42]} 25. b3 {[%clk 0:00:28]}  Qe7 {[%clk 0:01:24]} 26. Ndf3 {[%clk 0:00:26]}  Bg7 {[%clk 0:01:19]} 27. Bh3 {[%clk 0:00:22]}  Bxh3 {[%clk 0:01:17]} 28. Kxh3 {[%clk 0:00:22]}  Rd7 {[%clk 0:01:15]} 29. Kg2 {[%clk 0:00:21]}  f5 {[%clk 0:01:10]} 30. Ng5 {[%clk 0:00:21]}  Bh6 {[%clk 0:01:07]} 31. e5 {[%clk 0:00:19]}  Bxg5 {[%clk 0:00:55]} 32. hxg5 {[%clk 0:00:19]}  Rfd8 {[%clk 0:00:50]} 33. Rf2 {[%clk 0:00:19]}  Rd4 {[%clk 0:00:49]} 34. Rd2 {[%clk 0:00:17]}  Qd7 {[%clk 0:00:47]} 35. e6 {[%clk 0:00:13]}  Qc6+ {[%clk 0:00:40]} 36. Nf3 {[%clk 0:00:12]}  R4d6 {[%clk 0:00:29]} 37. e7 {[%clk 0:00:11]}  Re8 {[%clk 0:00:30]} 38. Re2 {[%clk 0:00:12]}  Rd7 {[%clk 0:00:29]} 39. Kf2 {[%clk 0:00:11]}  Qd6 {[%clk 0:00:27]} 40. d4 {[%clk 0:00:08]}  Rdxe7 {[%clk 0:00:26]} 41. Qxe7 {[%clk 0:00:05]}  Rxe7 {[%clk 0:00:26]} 0-1


[Site "https://www.chess.com"]

[Event "Titled Tuesday Blitz July 11 Early 2023"]
[White "Rodriguez Fontecha, Marcos"]
[Black "Kozak, Antoni"]
[WhiteFideId "2256576"]
[BlackFideId "21832030"]
[WhiteElo "2469"]
[BlackElo "2789"]
[Result "0-1"]
[Round "1"]
[TimeControl "180+2"]
[Date "2023.07.11"]
[WhiteClock "0:00:07"]
[BlackClock "0:00:21"]
[Board "51"]

1. e4 {[%clk 0:02:59]}  c5 {[%clk 0:02:59]} 2. Nc3 {[%clk 0:02:56]}  Nc6 {[%clk 0:02:55]} 3. Bb5 {[%clk 0:02:57]}  Nd4 {[%clk 0:02:55]} 4. Nf3 {[%clk 0:02:57]}  e6 {[%clk 0:02:51]} 5. O-O {[%clk 0:02:50]}  Ne7 {[%clk 0:02:50]} 6. Nxd4 {[%clk 0:02:50]}  cxd4 {[%clk 0:02:50]} 7. Ne2 {[%clk 0:02:51]}  Nc6 {[%clk 0:02:47]} 8. c3 {[%clk 0:02:50]}  Bc5 {[%clk 0:02:47]} 9. d3 {[%clk 0:02:45]}  O-O {[%clk 0:02:44]} 10. Kh1 {[%clk 0:02:42]}  a6 {[%clk 0:02:41]} 11. Ba4 {[%clk 0:02:42]}  b5 {[%clk 0:02:41]} 12. Bb3 {[%clk 0:02:39]}  Bb7 {[%clk 0:02:37]} 13. f4 {[%clk 0:02:37]}  Rc8 {[%clk 0:02:20]} 14. Ng3 {[%clk 0:02:26]}  dxc3 {[%clk 0:02:04]} 15. bxc3 {[%clk 0:02:25]}  b4 {[%clk 0:02:05]} 16. cxb4 {[%clk 0:02:12]}  Bxb4 {[%clk 0:01:56]} 17. Bb2 {[%clk 0:02:11]}  Qa5 {[%clk 0:01:54]} 18. Rc1 {[%clk 0:01:46]}  Ba3 {[%clk 0:01:50]} 19. Bxa3 {[%clk 0:01:42]}  Qxa3 {[%clk 0:01:51]} 20. Qg4 {[%clk 0:01:41]}  Qe7 {[%clk 0:01:37]} 21. Nh5 {[%clk 0:01:11]}  f6 {[%clk 0:01:36]} 22. Bc4 {[%clk 0:01:04]}  Na5 {[%clk 0:01:30]} 23. Bb3 {[%clk 0:00:58]}  Nxb3 {[%clk 0:01:25]} 24. axb3 {[%clk 0:00:59]}  Bc6 {[%clk 0:01:24]} 25. Rcd1 {[%clk 0:00:48]}  Rb8 {[%clk 0:01:22]} 26. Rfe1 {[%clk 0:00:45]}  Rxb3 {[%clk 0:01:16]} 27. d4 {[%clk 0:00:42]}  Qf7 {[%clk 0:00:56]} 28. d5 {[%clk 0:00:38]}  Bb5 {[%clk 0:00:48]} 29. dxe6 {[%clk 0:00:35]}  dxe6 {[%clk 0:00:47]} 30. Rd6 {[%clk 0:00:31]}  Re8 {[%clk 0:00:27]} 31. h3 {[%clk 0:00:30]}  Qg6 {[%clk 0:00:22]} 32. Qd1 {[%clk 0:00:23]}  Rc3 {[%clk 0:00:18]} 33. Rd8 {[%clk 0:00:22]}  Rc8 {[%clk 0:00:17]} 34. Rxc8 {[%clk 0:00:21]}  Rxc8 {[%clk 0:00:18]} 35. f5 {[%clk 0:00:20]}  exf5 {[%clk 0:00:15]} 36. Nf4 {[%clk 0:00:20]}  Qf7 {[%clk 0:00:12]} 37. exf5 {[%clk 0:00:20]}  Re8 {[%clk 0:00:13]} 38. Ne6 {[%clk 0:00:20]}  Bd7 {[%clk 0:00:12]} 39. Qd6 {[%clk 0:00:21]}  Bxe6 {[%clk 0:00:11]} 40. fxe6 {[%clk 0:00:22]}  Qe7 {[%clk 0:00:09]} 41. Qxa6 {[%clk 0:00:22]}  h6 {[%clk 0:00:09]} 42. Qc4 {[%clk 0:00:22]}  Rd8 {[%clk 0:00:10]} 43. Qc6 {[%clk 0:00:22]}  Rd6 {[%clk 0:00:10]} 44. Qc8+ {[%clk 0:00:21]}  Kh7 {[%clk 0:00:09]} 45. Qc4 {[%clk 0:00:22]}  f5 {[%clk 0:00:09]} 46. Re3 {[%clk 0:00:20]}  Rd1+ {[%clk 0:00:08]} 47. Kh2 {[%clk 0:00:19]}  Qd6+ {[%clk 0:00:09]} 48. g3 {[%clk 0:00:18]}  Rd2+ {[%clk 0:00:07]} 49. Re2 {[%clk 0:00:19]}  Rd3 {[%clk 0:00:07]} 50. Qf4 {[%clk 0:00:17]}  Qxf4 {[%clk 0:00:08]} 51. gxf4 {[%clk 0:00:17]}  Rd8 {[%clk 0:00:08]} 52. Kg3 {[%clk 0:00:16]}  Re8 {[%clk 0:00:09]} 53. Re5 {[%clk 0:00:15]}  Kg6 {[%clk 0:00:09]} 54. Kf3 {[%clk 0:00:15]}  Kf6 {[%clk 0:00:10]} 55. Ra5 {[%clk 0:00:16]}  Rxe6 {[%clk 0:00:10]} 56. Rb5 {[%clk 0:00:17]}  Rc6 {[%clk 0:00:11]} 57. Ra5 {[%clk 0:00:17]}  Rd6 {[%clk 0:00:11]} 58. Rb5 {[%clk 0:00:17]}  Ra6 {[%clk 0:00:12]} 59. Rc5 {[%clk 0:00:16]}  Ra3+ {[%clk 0:00:12]} 60. Kg2 {[%clk 0:00:16]}  Kg6 {[%clk 0:00:13]} 61. Rb5 {[%clk 0:00:15]}  Re3 {[%clk 0:00:13]} 62. Rc5 {[%clk 0:00:15]}  Re4 {[%clk 0:00:14]} 63. Kf3 {[%clk 0:00:15]}  Re6 {[%clk 0:00:15]} 64. Rd5 {[%clk 0:00:15]}  Kf6 {[%clk 0:00:15]} 65. Rb5 {[%clk 0:00:15]}  Ra6 {[%clk 0:00:15]} 66. Rc5 {[%clk 0:00:16]}  g5 {[%clk 0:00:16]} 67. fxg5+ {[%clk 0:00:12]}  hxg5 {[%clk 0:00:16]} 68. Kg2 {[%clk 0:00:10]}  Kg6 {[%clk 0:00:17]} 69. Rc8 {[%clk 0:00:10]}  Ra2+ {[%clk 0:00:16]} 70. Kg3 {[%clk 0:00:09]}  Ra3+ {[%clk 0:00:16]} 71. Kg2 {[%clk 0:00:09]}  Ra2+ {[%clk 0:00:17]} 72. Kg3 {[%clk 0:00:10]}  f4+ {[%clk 0:00:18]} 73. Kf3 {[%clk 0:00:10]}  Rh2 {[%clk 0:00:17]} 74. Kg4 {[%clk 0:00:09]}  Rg2+ {[%clk 0:00:17]} 75. Kf3 {[%clk 0:00:09]}  Rg3+ {[%clk 0:00:18]} 76. Ke4 {[%clk 0:00:10]}  Re3+ {[%clk 0:00:18]} 77. Kd4 {[%clk 0:00:09]}  Rxh3 {[%clk 0:00:19]} 78. Ke5 {[%clk 0:00:10]}  Re3+ {[%clk 0:00:19]} 79. Kd4 {[%clk 0:00:10]}  Kf5 {[%clk 0:00:20]} 80. Rf8+ {[%clk 0:00:09]}  Kg4 {[%clk 0:00:20]} 81. Rg8 {[%clk 0:00:10]}  Re1 {[%clk 0:00:20]} 82. Rf8 {[%clk 0:00:07]}  f3 {[%clk 0:00:21]} 0-1


[Site "https://www.chess.com"]

[Event "Titled Tuesday Blitz July 11 Early 2023"]
[White "Urbina Perez, Juan Antonio"]
[Black "Goltsev, Dmitry"]
[WhiteFideId "2217368"]
[BlackFideId "24176710"]
[WhiteElo "2466"]
[BlackElo "2778"]
[Result "1-0"]
[Round "1"]
[TimeControl "180+2"]
[Date "2023.07.11"]
[WhiteClock "0:00:19"]
[BlackClock "0:00:00"]
[Board "55"]

1. e4 {[%clk 0:02:56]}  e6 {[%clk 0:02:57]} 2. d4 {[%clk 0:02:55]}  d5 {[%clk 0:02:57]} 3. Nd2 {[%clk 0:02:55]}  c5 {[%clk 0:02:57]} 4. exd5 {[%clk 0:02:54]}  exd5 {[%clk 0:02:57]} 5. Ngf3 {[%clk 0:02:54]}  Nf6 {[%clk 0:02:58]} 6. Bb5+ {[%clk 0:02:54]}  Nc6 {[%clk 0:02:55]} 7. O-O {[%clk 0:02:54]}  Be7 {[%clk 0:02:55]} 8. dxc5 {[%clk 0:02:54]}  Bxc5 {[%clk 0:02:56]} 9. Nb3 {[%clk 0:02:52]}  Bb6 {[%clk 0:02:56]} 10. Re1+ {[%clk 0:02:49]}  Be6 {[%clk 0:02:53]} 11. Be3 {[%clk 0:02:49]}  O-O {[%clk 0:02:52]} 12. Bxb6 {[%clk 0:02:47]}  Qxb6 {[%clk 0:02:52]} 13. Bd3 {[%clk 0:02:47]}  Bg4 {[%clk 0:02:50]} 14. c3 {[%clk 0:02:44]}  Rfe8 {[%clk 0:02:48]} 15. Be2 {[%clk 0:02:32]}  Ne4 {[%clk 0:02:40]} 16. Nfd4 {[%clk 0:02:25]}  Bxe2 {[%clk 0:02:27]} 17. Rxe2 {[%clk 0:02:22]}  Ne5 {[%clk 0:02:24]} 18. Qc2 {[%clk 0:02:13]}  a5 {[%clk 0:02:11]} 19. Rae1 {[%clk 0:02:09]}  a4 {[%clk 0:02:10]} 20. Nd2 {[%clk 0:02:07]}  Nc4 {[%clk 0:01:57]} 21. Nxc4 {[%clk 0:02:00]}  Qc5 {[%clk 0:01:32]} 22. Nd2 {[%clk 0:01:52]}  Nf6 {[%clk 0:01:21]} 23. Rxe8+ {[%clk 0:01:49]}  Nxe8 {[%clk 0:01:22]} 24. Qf5 {[%clk 0:01:30]}  Nf6 {[%clk 0:01:20]} 25. h3 {[%clk 0:01:25]}  a3 {[%clk 0:01:18]} 26. Qc2 {[%clk 0:01:20]}  g6 {[%clk 0:01:14]} 27. N2b3 {[%clk 0:01:18]}  Qc4 {[%clk 0:01:09]} 28. Qc1 {[%clk 0:01:14]}  Ne4 {[%clk 0:01:05]} 29. Nd2 {[%clk 0:01:09]}  axb2 {[%clk 0:01:00]} 30. Qxb2 {[%clk 0:01:09]}  Qxc3 {[%clk 0:01:00]} 31. Qxc3 {[%clk 0:01:01]}  Nxc3 {[%clk 0:00:59]} 32. Nb1 {[%clk 0:00:57]}  Nxa2 {[%clk 0:00:57]} 33. Re7 {[%clk 0:00:54]}  Nc1 {[%clk 0:00:36]} 34. Rxb7 {[%clk 0:00:50]}  Nd3 {[%clk 0:00:36]} 35. f3 {[%clk 0:00:42]}  Re8 {[%clk 0:00:33]} 36. Nc3 {[%clk 0:00:39]}  Re1+ {[%clk 0:00:33]} 37. Kh2 {[%clk 0:00:39]}  Nf4 {[%clk 0:00:24]} 38. Rb8+ {[%clk 0:00:35]}  Kg7 {[%clk 0:00:23]} 39. Rb1 {[%clk 0:00:36]}  Re3 {[%clk 0:00:19]} 40. Rc1 {[%clk 0:00:34]}  h5 {[%clk 0:00:15]} 41. h4 {[%clk 0:00:33]}  Rd3 {[%clk 0:00:13]} 42. Nde2 {[%clk 0:00:31]}  Ne6 {[%clk 0:00:13]} 43. Rd1 {[%clk 0:00:30]}  Rxd1 {[%clk 0:00:12]} 44. Nxd1 {[%clk 0:00:31]}  Kf6 {[%clk 0:00:10]} 45. Nb2 {[%clk 0:00:30]}  g5 {[%clk 0:00:09]} 46. hxg5+ {[%clk 0:00:28]}  Kxg5 {[%clk 0:00:10]} 47. Nd3 {[%clk 0:00:27]}  Kf5 {[%clk 0:00:10]} 48. Kg3 {[%clk 0:00:26]}  Ng7 {[%clk 0:00:08]} 49. Kf2 {[%clk 0:00:26]}  Ne6 {[%clk 0:00:06]} 50. Ke3 {[%clk 0:00:26]}  h4 {[%clk 0:00:06]} 51. Nd4+ {[%clk 0:00:26]}  Kg5 {[%clk 0:00:04]} 52. Nxe6+ {[%clk 0:00:25]}  fxe6 {[%clk 0:00:05]} 53. Kd4 {[%clk 0:00:24]}  Kf5 {[%clk 0:00:05]} 54. Kc5 {[%clk 0:00:21]}  Kf6 {[%clk 0:00:05]} 55. Kd6 {[%clk 0:00:21]}  Kf5 {[%clk 0:00:05]} 56. Kc6 {[%clk 0:00:21]}  Kf6 {[%clk 0:00:04]} 57. Kc5 {[%clk 0:00:21]}  Kg5 {[%clk 0:00:04]} 58. Kd6 {[%clk 0:00:21]}  Kf5 {[%clk 0:00:03]} 59. Kc5 {[%clk 0:00:20]}  Kg5 {[%clk 0:00:03]} 60. Kd4 {[%clk 0:00:21]}  Kf5 {[%clk 0:00:03]} 61. Ke3 {[%clk 0:00:21]}  e5 {[%clk 0:00:03]} 62. Nb4 {[%clk 0:00:19]}  d4+ {[%clk 0:00:03]} 63. Kf2 {[%clk 0:00:20]}  e4 {[%clk 0:00:03]} 64. fxe4+ {[%clk 0:00:20]}  Kxe4 {[%clk 0:00:04]} 65. Nc2 {[%clk 0:00:19]}  d3 {[%clk 0:00:00]} 66. Ne3 {[%clk 0:00:19]} 1-0


[Site "https://www.chess.com"]